fUSD/lending_fUSD_20260221
["ID","MTS","AMOUNT","RATE_DAILY","PERIOD"]
[406285777,1771689053361,-500.0,0.0004506,30]
[406285778,1771689053370,-500.0,0.0004506,30]
[406285779,1771689053379,-500.0,0.0004506,30]
[406285780,1771689053388,-500.0,0.0004506,30]
[406285781,1771689053398,-500.0,0.0004506,30]
[406285782,1771689053407,-500.0,0.0004506,30]
[406285783,1771689053416,-500.0,0.0004506,30]
[406285784,1771689053429,-500.0,0.0004506,30]
[406285785,1771689053438,-500.0,0.0004506,30]
[406285786,1771689053447,-188.23,0.0004506,30]
[406285787,1771689053456,-500.0,0.0004506,120]
[406285788,1771689053465,-500.0,0.0004506,120]
[406285789,1771689053475,-500.0,0.0004506,120]
[406285790,1771689053484,-170.9360008,0.0004506,120]
[406285791,1771689053494,-18643.6315485,0.0004506,30]
[406285792,1771689053503,-18643.6315485,0.0004506,30]
[406285793,1771689053512,-18643.6315485,0.0004506,30]
[406285794,1771689053522,-231.28369723,0.00045063,54]
[406285795,1771689053531,-150.0,0.00045065,2]
[406285796,1771689053540,-1620.5434497,0.00045065,2]
[406285797,1771689053549,-2000.0,0.00045065,120]
[406285798,1771689053559,-223.0315306,0.00045067,30]
[406285799,1771689053568,-500.0,0.00045067,30]
[406285800,1771689053577,-500.0,0.00045067,30]
[406285801,1771689053587,-151.0,0.00045067,30]
[406285802,1771689053597,-668.65185757,0.00045067,30]
[406285803,1771689053606,-500.0,0.00045067,30]
[406285804,1771689053616,-231.19,0.00045068,2]
[406285805,1771689053626,-1000.0,0.0004507,3]
[406285806,1771689053635,-500.0,0.0004507,3]
[406285807,1771689053645,-1000.0,0.0004507,3]
[406285808,1771689053654,-500.0,0.0004507,3]
[406285809,1771689053663,-151.0,0.00045075,120]
[406285810,1771689053674,-1729.82304714,0.00045078,120]
[406285811,1771689053684,-151.0,0.00045078,120]
[406285812,1771689053694,-151.0,0.00045078,120]
[406285813,1771689053703,-158.70697,0.00045078,120]
[406285814,1771689053713,-151.0,0.00045078,120]
[406285815,1771689053722,-152.277587,0.00045078,120]
[406285816,1771689053731,-151.0,0.00045078,120]
[406285817,1771689053741,-151.0,0.00045078,120]
[406285818,1771689053751,-151.0,0.00045078,120]
[406285819,1771689053760,-151.0,0.00045078,3]
[406285820,1771689053770,-151.0,0.00045078,3]
[406285821,1771689053780,-1000.0,0.00045078,120]
[406285822,1771689053790,-1000.0,0.00045078,120]
[406285823,1771689053800,-1000.0,0.00045078,120]
[406285824,1771689053809,-1000.0,0.00045078,120]
[406285825,1771689053819,-1000.0,0.00045078,120]
[406285826,1771689053828,-1000.0,0.00045078,120]
[406285827,1771689053837,-1000.0,0.00045078,120]
[406285828,1771689053847,-1000.0,0.00045078,120]
[406285829,1771689053856,-1000.0,0.00045078,120]
[406285830,1771689053864,-1000.0,0.00045078,120]
[406285831,1771689053874,-1000.0,0.00045078,120]
[406285832,1771689053883,-1000.0,0.00045078,120]
[406285833,1771689053892,-1000.0,0.00045078,120]
[406285834,1771689053902,-651.192886,0.00045078,120]
[406285835,1771689053911,-151.0,0.00045078,28]
[406285836,1771689053920,-205.991565,0.00045078,28]
[406285837,1771689053930,-241.852372,0.00045078,120]
[406285838,1771689053939,-151.0,0.00045078,120]
[406285839,1771689053949,-156.71888,0.00045078,120]
[406285840,1771689053958,-151.0,0.00045078,120]
[406285841,1771689053968,-153.828179,0.00045078,120]
[406285842,1771689053977,-151.0,0.00045078,120]
[406285843,1771689053987,-151.0,0.00045078,120]
[406285844,1771689053996,-151.0,0.00045078,120]
[406285845,1771689054006,-151.0,0.00045078,120]
[406285846,1771689054015,-159.508916,0.00045078,120]
[406285847,1771689054024,-151.0,0.00045078,120]
[406285848,1771689054034,-151.0,0.00045078,120]
[406285849,1771689054043,-151.0,0.00045078,120]
[406285850,1771689054053,-151.0,0.00045078,120]
[406285851,1771689054062,-151.0,0.00045078,120]
[406285852,1771689054072,-257.436788,0.00045078,120]
[406285853,1771689054087,-151.0,0.00045078,120]
[406285854,1771689054097,-151.0,0.00045078,120]
[406285855,1771689054107,-253.842309,0.00045078,120]
[406285856,1771689054117,-610.342215,0.00045078,120]
[406285857,1771689054126,-610.342215,0.00045078,120]
[406285858,1771689054135,-610.342215,0.00045078,120]
[406285859,1771689054144,-610.342215,0.00045078,120]
[406285860,1771689054153,-610.342215,0.00045078,120]
[406285861,1771689054162,-610.342215,0.00045078,120]
[406285862,1771689054171,-610.342215,0.00045078,120]
[406285863,1771689054180,-610.342215,0.00045078,120]
[406285864,1771689054189,-610.342215,0.00045078,120]
[406285865,1771689054198,-610.342215,0.00045078,120]
[406285866,1771689054207,-610.342215,0.00045078,120]
[406285867,1771689054216,-610.342215,0.00045078,120]
[406285868,1771689054225,-610.342215,0.00045078,120]
[406285869,1771689054234,-610.342215,0.00045078,120]
[406285870,1771689054244,-610.342215,0.00045078,120]
[406285871,1771689054254,-610.342219,0.00045078,120]
[406285872,1771689054263,-151.0,0.00045078,120]
[406285873,1771689054272,-151.0,0.00045078,120]
[406285874,1771689054281,-151.0,0.00045078,120]
[406285875,1771689054290,-151.0,0.00045078,120]
[406285876,1771689054302,-151.0,0.00045078,120]
[406285877,1771689054311,-151.0,0.00045078,120]
[406285878,1771689054319,-151.0,0.00045078,120]
[406285879,1771689054329,-151.0,0.00045078,120]
[406285880,1771689054338,-151.0,0.00045078,7]
[406285881,1771689054347,-151.0,0.00045078,120]
[406285882,1771689054356,-151.0,0.00045078,7]
[406285883,1771689054365,-151.0,0.00045078,120]
[406285884,1771689054374,-151.0,0.00045078,7]
[406285885,1771689054383,-151.0,0.00045078,7]
[406285886,1771689054393,-151.0,0.00045078,120]
[406285887,1771689054402,-206.0755,0.00045078,120]
[406285888,1771689054411,-151.0,0.00045078,7]
[406285889,1771689054420,-151.0,0.00045078,7]
[406285890,1771689054429,-151.0,0.00045078,7]
[406285891,1771689054438,-151.0,0.00045078,7]
[406285892,1771689054447,-222.31977,0.00045078,120]
[406285893,1771689054456,-151.0,0.00045078,31]
[406285894,1771689054466,-151.0,0.00045078,31]
[406285895,1771689054475,-151.0,0.00045078,31]
[406285896,1771689054484,-151.0,0.00045078,31]
[406285897,1771689054493,-946095.99447351,0.00045078,10]
[406285898,1771689054589,-342.3228072,0.00045078,10]
[406285899,1771689054858,-5976.0,0.00031549,2]
[406285900,1771689054867,-5976.0,0.00034549,2]
[406285901,1771689054877,-5976.0,0.00037549,2]
[406285902,1771689054887,-5976.0,0.00040549,2]
[406285903,1771689054895,-5976.0,0.00043549,2]
[406285904,1771689054904,-1098.72451206,0.00043673,10]
[406285905,1771689054914,-150.0,0.000444,120]
[406285906,1771689054923,-150.0,0.000444,120]
[406285907,1771689054932,-657.455345,0.000447,45]
[406285908,1771689054941,-2026.98779751,0.00044978,2]
[406285909,1771689054950,-58718.63720653,0.00045078,10]
[406285910,1771689054961,-41758.94812058,0.00045078,10]
[406285911,1771689054972,-421.9602,0.00045078,10]
[406285912,1771689054983,-37231.86334488,0.00045078,10]
[406285913,1771689054994,-345.48,0.00045078,10]
[406285914,1771689055009,-1265.28,0.00045078,10]
[406285915,1771689055024,-937.70955075,0.00045078,10]
[406285916,1771689055039,-302.85636301,0.00045078,10]
[406285920,1771689135586,542.0,0.0001,2]
[406285921,1771689138878,500.0,0.0001,2]
[406285922,1771689145413,500.0,0.0001,2]
[406285923,1771689146077,500.0,0.0001,2]
[406285924,1771689146172,500.0,0.0001,2]
[406285925,1771689146326,500.0,0.0001,2]
[406285926,1771689146650,500.0,0.0001,2]
[406285927,1771689146849,500.0,0.0001,2]
[406285928,1771689147121,500.0,0.0001,2]
[406285929,1771689147231,500.0,0.0001,2]
[406285930,1771689147616,500.0,0.0001,2]
[406285931,1771689147751,500.0,0.0001,2]
[406285932,1771689288357,167.89983179,0.00012,2]
[406285933,1771689350748,-5000.0,0.00013251,2]
[406285934,1771689351972,-2473.25547,0.00013251,2]
[406285935,1771689351992,-2526.74453,0.00013317,2]
[406285936,1771689352902,-1599.588707,0.00013317,2]
[406285937,1771689352922,-3400.411293,0.00013318,2]
[406285938,1771689355473,-5000.0,0.00013318,2]
[406285939,1771689357082,-752.388707,0.00013318,2]
[406285940,1771689357104,-1200.0,0.00013489,2]
[406285941,1771689357132,-2238.49271131,0.0001349,2]
[406285942,1771689357154,-300.0,0.00013499,2]
[406285943,1771689357177,-163.97957254,0.000135,2]
[406285944,1771689357199,-345.13900915,0.000135,2]
[406285945,1771689358030,-139.85515556,0.000135,2]
[406285946,1771689358053,-613.84987286,0.000135,2]
[406285947,1771689358074,-250.0,0.0001351,2]
[406285948,1771689358095,-250.0,0.00013558,2]
[406285949,1771689358115,-3746.29497158,0.0001358,2]
[406285950,1771689359474,-5000.0,0.0001358,2]
[406285951,1771689360749,-5000.0,0.0001358,2]
[406285952,1771689370497,-300.0,0.00013579,2]
[406285953,1771689370525,-250.0,0.0001358,2]
[406285954,1771689370546,-4450.0,0.0001358,2]
[406285955,1771689371450,-5000.0,0.0001358,2]
[406285956,1771689372347,-4146.99568288,0.000135,2]
[406285957,1771689372381,-853.00431712,0.0001358,2]
[406285958,1771689373246,-5000.0,0.0001349,2]
[406285959,1771689374114,-5000.0,0.0001349,2]
[406285960,1771689374803,-5000.0,0.0001349,2]
[406285961,1771689375693,-5000.0,0.0001349,2]
[406285962,1771689376474,-5000.0,0.0001349,2]
[406285963,1771689390258,-377.366002,0.00013015,2]
[406285964,1771689405227,-1153.65526976,0.0001349,2]
[406285965,1771689421310,-323.32944314,0.000135,2]
[406285966,1771689421340,-409.23324858,0.000135,2]
[406285967,1771689438008,500.0,0.0001,2]
[406285968,1771689439299,500.0,0.0001,2]
[406285969,1771689442584,500.0,0.0001,2]
[406285970,1771689444538,500.0,0.0001,2]
[406285971,1771689444717,440.09231828,0.000135,2]
[406285972,1771689445008,500.0,0.0001,2]
[406285973,1771689446001,799.99,0.0001,2]
[406285974,1771689446088,500.0,0.0001,2]
[406285975,1771689446606,500.0,0.0001,2]
[406285976,1771689447251,500.0,0.0001,2]
[406285977,1771689452613,500.0,0.0001,2]
[406285978,1771689453122,500.0,0.0001,2]
[406285979,1771689453618,500.0,0.0001,2]
[406285980,1771689453922,500.0,0.0001,2]
[406285981,1771689454122,500.0,0.0001,2]
[406285982,1771689454157,700.0,0.0001,2]
[406285983,1771689454189,94.80229828,0.0001,2]
[406285984,1771689454220,405.19770172,0.0001,2]
[406285985,1771689454253,500.0,0.0001,2]
[406285986,1771689454413,500.0,0.0001,2]
[406285987,1771689454626,500.0,0.0001,2]
[406285988,1771689454659,700.0,0.0001,2]
[406285989,1771689454892,500.0,0.0001,2]
[406285990,1771689455092,903.57997268,0.0001,2]
[406285991,1771689455155,700.0,0.0001,2]
[406285992,1771689455687,700.0,0.0001,2]
[406285993,1771689456148,700.0,0.0001,2]
[406285994,1771689456329,500.0,0.0001,2]
[406285995,1771689456630,700.0,0.0001,2]
[406285996,1771689456854,500.0,0.0001,2]
[406285997,1771689457109,700.0,0.0001,2]
[406285998,1771689457365,500.0,0.0001,2]
[406285999,1771689457604,700.0,0.0001,2]
[406286000,1771689457877,291.2323256,0.0001,2]
[406286001,1771689457903,208.7676744,0.0001,2]
[406286002,1771689458094,700.0,0.0001,2]
[406286003,1771689458586,700.0,0.0001,2]
[406286004,1771689459074,700.0,0.0001,2]
[406286005,1771689459590,700.0,0.0001,2]
[406286006,1771689460090,700.0,0.0001,2]
[406286007,1771689460590,720.21317428,0.0001,2]
[406286008,1771689469140,177.39,0.000135,2]
[406286009,1771689478984,5393.63915132,0.000135,2]
[406286010,1771689479010,8898.45495692,0.000135,2]
[406286044,1771689627308,200.0,0.000126,4]
[406286045,1771689629395,400.0,0.000127,4]
[406286046,1771689632665,600.0,0.000128,4]
[406286047,1771689747689,500.0,0.0001,2]
[406286048,1771689748199,500.0,0.0001,2]
[406286049,1771689750036,500.0,0.0001,2]
[406286050,1771689750536,500.0,0.0001,2]
[406286051,1771689751017,500.0,0.0001,2]
[406286052,1771689751497,500.0,0.0001,2]
[406286053,1771689752152,500.0,0.0001,2]
[406286054,1771689752463,918.40902476,0.0001,2]
[406286055,1771689752660,500.0,0.0001,2]
[406286056,1771689753264,500.0,0.0001,2]
[406286057,1771689754054,500.0,0.0001,2]
[406286058,1771689834403,-800.0,0.000129,4]
[406286059,1771689855763,5000.01,0.00012715,2]
[406286060,1771689857174,200.0,0.000126,4]
[406286061,1771689859261,500.0,0.000127,4]
[406286062,1771689861367,800.0,0.000128,4]
[406286063,1771689863464,1100.0,0.000129,4]
[406286064,1771689988952,2400.0,0.0001268,2]
[406286065,1771689988975,10000.01,0.0001268,2]
[406286066,1771689989000,465.81,0.0001268,2]
[406286067,1771690006139,200.0,0.0001268,2]
[406286068,1771690038730,2000.0,0.000125,4]
[406286069,1771690040838,1600.0,0.000126,4]
[406286070,1771690123216,-2400.0,0.000126,4]
[406286071,1771690139404,-4000.01,0.000127,4]
[406286072,1771690139616,-1999.99,0.000127,4]
[406286073,1771690139646,-1045.0,0.00012799,2]
[406286074,1771690139814,-1900.01,0.000128,4]
[406286075,1771690139968,-3800.02,0.000128,4]
[406286076,1771690140275,-2399.97,0.000128,4]
[406286077,1771690142281,-300.0,0.00012899,2]
[406286078,1771690142430,-7512.14073956,0.000129,4]
[406286079,1771690142573,-2587.85926044,0.000129,4]
[406286080,1771690142610,-4824.29147912,0.00013132,2]
[406286081,1771690142695,-10000.01,0.00013132,2]
[406286082,1771690142820,-3414.46658358,0.00013132,2]
[406286083,1771690142843,-3171.07683284,0.00013132,2]
[406286084,1771690142966,-2016.787,0.0001321,2]
[406286085,1771690142998,-150.726,0.0001321,2]
[406286086,1771690143028,-1200.0,0.00013298,2]
[406286087,1771690143095,-3264.984,0.00013299,2]
[406286088,1771690143129,-10000.01,0.00013299,2]
[406286089,1771690143252,-1900.86007619,0.00013299,2]
[406286090,1771690143291,-6198.28984762,0.00013299,2]
[406286091,1771690143386,-10000.01,0.00013299,2]
[406286092,1771690145372,-2660.02010489,0.00013299,2]
[406286093,1771690145405,-4679.96979022,0.00013299,2]
[406286094,1771690145496,-215.5529621,0.00013299,2]
[406286095,1771690145526,-272.82216572,0.00013299,2]
[406286096,1771690145555,-198.45237358,0.00013299,2]
[406286097,1771690145584,-2764.66378858,0.000133,2]
[406286098,1771690145612,-496.02742004,0.00013342,2]
[406286099,1771690145706,-2104.97257996,0.00013342,2]
[406286100,1771690145735,-150.0,0.00013353,2]
[406286101,1771690145763,-150.0,0.00013353,2]
[406286102,1771690145794,-151.0,0.00013377,2]
[406286103,1771690145823,-151.0,0.00013377,2]
[406286104,1771690145852,-151.0,0.00013377,2]
[406286105,1771690146004,150.0,0.00013298,2]
[406286106,1771690147003,150.0,0.00013352,2]
[406286107,1771690147643,150.0,0.00013352,2]
[406286108,1771690181047,3834.06484008,0.0001328,2]
[406286109,1771690181070,10000.01,0.0001328,2]
[406286110,1771690181092,10000.01,0.0001328,2]
[406286111,1771690181117,10000.01,0.0001328,2]
[406286112,1771690181143,10000.01,0.0001328,2]
[406286113,1771690181169,10000.01,0.0001328,2]
[406286114,1771690181191,10000.01,0.0001328,2]
[406286115,1771690181215,7160.20175992,0.0001328,2]
[406286116,1771690207828,200.0,0.000125,4]
[406286119,1771690232011,-400.0,0.000126,4]
[406286120,1771690232021,-205.6100191,0.000127,4]
[406286122,1771690232033,-394.3899809,0.000127,4]
[406286124,1771690232042,-800.0,0.000128,4]
[406286126,1771690232052,-194.52956852,0.000129,4]
[406286128,1771690232063,-805.47043148,0.000129,4]
[406286129,1771690232076,-166.66,0.00013076,2]
[406286130,1771690232086,-215.55296208,0.00013279,2]
[406286131,1771690232095,-181.8814438,0.00013279,2]
[406286132,1771690232105,-448.27601314,0.00013279,2]
[406286133,1771690232115,-157.57454607,0.00013369,2]
[406286134,1771690232125,-157.57454607,0.00013369,2]
[406286135,1771690232134,-212.03504239,0.00013378,2]
[406286136,1771690232162,-348.4242,0.00013378,2]
[406286137,1771690232173,-639.54075761,0.00013378,2]
[406286138,1771690232182,-274.76054239,0.00013378,2]
[406286139,1771690232324,-25.23945761,0.00013378,2]
[406286140,1771690232335,-260.0,0.00013378,2]
[406286142,1771690232344,-438.51053739,0.00013379,2]
[406286144,1771690232360,-1725.0,0.00013379,2]
[406286146,1771690232372,-336.48946261,0.00013379,2]
[406286149,1771690232381,-1153.43511183,0.00013379,2]
[406286152,1771690232392,-669.97439014,0.00013379,2]
[406286157,1771690232405,-2255.84924183,0.00013379,2]
[406286160,1771690232416,-1166.46,0.00013379,2]
[406286164,1771690232426,-1545696.12136932,0.00013379,2]
[406286167,1771690232437,-161482.5094819,0.00013379,2]
[406286170,1771690232452,-146485.78147508,0.00013379,2]
[406286172,1771690232467,-171157.96924413,0.00013379,2]
[406286230,1771690240313,-219.05415469,0.00013378,2]
[406286232,1771690240324,-241.39483323,0.00013378,2]
[406286234,1771690240335,-500.0,0.00013378,2]
[406286237,1771690240344,-141.89702638,0.00013378,2]
[406286240,1771690240360,-67.15218982,0.00013378,2]
[406286242,1771690240369,-500.0,0.00013378,2]
[406286243,1771690240378,-500.0,0.00013378,2]
[406286244,1771690240388,-500.0,0.00013378,2]
[406286245,1771690240399,-250.8964726,0.00013378,2]
[406286246,1771690240408,-202.5,0.00013378,2]
[406286247,1771690240417,-500.0,0.00013378,2]
[406286248,1771690240427,-498.74582843,0.00013378,2]
[406286249,1771690240437,-500.0,0.00013378,2]
[406286250,1771690240446,-500.0,0.00013378,2]
[406286251,1771690240456,-500.0,0.00013378,2]
[406286252,1771690240464,-500.0,0.00013378,2]
[406286253,1771690240473,-1890.70550915,0.00013379,2]
[406286254,1771690240484,-68888.0,0.00013379,2]
[406286255,1771690240496,-1399153.19417662,0.00013379,2]
[406286256,1771690240506,-109550.7560206,0.00013379,2]
[406286257,1771690240515,-1018.43216429,0.00013379,3]
[406286258,1771690240525,-1018.43216429,0.00013379,3]
[406286259,1771690240534,-500.0,0.000134,2]
[406286260,1771690240543,-500.0,0.000134,2]
[406286261,1771690240552,-500.0,0.000134,2]
[406286262,1771690240562,-500.0,0.000134,2]
[406286263,1771690240572,-500.0,0.000134,2]
[406286264,1771690240581,-500.0,0.000134,2]
[406286265,1771690240590,-500.0,0.000134,2]
[406286266,1771690240600,-500.0,0.000134,2]
[406286267,1771690240610,-150.0,0.00013407,2]
[406286268,1771690240619,-2196.66,0.00013453,2]
[406286269,1771690240629,-150.0,0.00013462,2]
[406286270,1771690240638,-9999.99,0.0001347,2]
[406286271,1771690240647,-9999.99,0.0001347,2]
[406286272,1771690240656,-999.99,0.0001347,2]
[406286273,1771690240666,-5403.05,0.0001347,2]
[406286274,1771690240675,-9999.99,0.0001347,2]
[406286275,1771690240685,-299.99,0.0001347,2]
[406286276,1771690240694,-500.0,0.00013472,2]
[406286277,1771690240704,-151.0,0.00013472,2]
[406286278,1771690240713,-151.0,0.00013472,2]
[406286279,1771690240723,-151.0,0.00013472,2]
[406286280,1771690240732,-151.0,0.00013472,2]
[406286281,1771690240741,-151.0,0.00013472,2]
[406286282,1771690240750,-151.0,0.00013472,2]
[406286283,1771690240760,-151.0,0.00013472,2]
[406286284,1771690240770,-151.0,0.00013472,2]
[406286285,1771690240780,-151.0,0.00013472,2]
[406286287,1771690240789,-151.0,0.00013472,2]
[406286289,1771690240798,-151.0,0.00013472,2]
[406286291,1771690240808,-151.0,0.00013472,2]
[406286293,1771690240817,-151.0,0.00013472,2]
[406286295,1771690240826,-151.0,0.00013472,2]
[406286297,1771690240835,-151.0,0.00013472,2]
[406286299,1771690240844,-151.0,0.00013472,2]
[406286301,1771690240853,-151.0,0.00013472,2]
[406286302,1771690240862,-151.0,0.00013472,2]
[406286305,1771690240872,-151.0,0.00013472,2]
[406286306,1771690240881,-151.0,0.00013472,2]
[406286308,1771690240890,-4091.44,0.00013478,2]
[406286310,1771690240900,-1018.43216429,0.00013478,3]
[406286313,1771690240909,-5301.71,0.00013478,2]
[406286315,1771690240919,-150.99,0.00013478,2]
[406286317,1771690240928,-150.99,0.00013478,2]
[406286319,1771690240936,-1018.43216429,0.00013478,3]
[406286320,1771690240945,-9999.99,0.00013478,2]
[406286323,1771690240955,-1018.43216429,0.00013479,3]
[406286325,1771690240964,-1018.43216429,0.00013479,3]
[406286326,1771690240973,-1018.43216429,0.00013479,3]
[406286329,1771690240982,-1018.43216426,0.00013479,3]
[406286330,1771690240992,-200774.85,0.00013479,2]
[406286333,1771690241002,-166.66,0.00013508,2]
[406286335,1771690241012,-211.81596152,0.00013516,2]
[406286336,1771690241022,-19643.68103688,0.0001358,2]
[406286338,1771690241032,-1000.0,0.0001359,2]
[406286341,1771690241042,-32860.742,0.0001359,2]
[406286342,1771690241051,-246.88,0.000136,2]
[406286344,1771690241060,-500.0,0.00013698,2]
[406286347,1771690241070,-500.0,0.00013698,2]
[406286349,1771690241079,-500.0,0.00013698,2]
[406286351,1771690241088,-500.0,0.00013698,2]
[406286353,1771690241097,-616.19377918,0.00013698,2]
[406286355,1771690241106,-500.0,0.00013698,2]
[406286357,1771690241115,-500.0,0.00013698,2]
[406286359,1771690241124,-500.0,0.00013698,2]
[406286361,1771690241133,-386.77491301,0.00013698,2]
[406286363,1771690241143,-500.0,0.00013698,2]
[406286365,1771690241152,-500.0,0.00013698,2]
[406286367,1771690241162,-511.47956793,0.00013698,2]
[406286369,1771690241172,-500.0,0.00013698,2]
[406286370,1771690241182,-500.0,0.00013698,2]
[406286373,1771690241191,-500.0,0.00013698,2]
[406286374,1771690241201,-500.0,0.00013698,2]
[406286376,1771690241210,-500.0,0.00013698,2]
[406286378,1771690241219,-500.0,0.00013698,2]
[406286380,1771690241228,-500.0,0.00013698,2]
[406286382,1771690241238,-500.0,0.00013698,2]
[406286384,1771690241247,-554.43343843,0.00013698,2]
[406286386,1771690241257,-505.47338901,0.00013698,2]
[406286388,1771690241266,-500.0,0.00013698,2]
[406286390,1771690241275,-500.0,0.00013698,2]
[406286392,1771690241284,-500.0,0.00013698,2]
[406286394,1771690241293,-541.91630413,0.00013698,2]
[406286396,1771690241302,-503.02114283,0.00013698,2]
[406286398,1771690241311,-500.0,0.00013698,2]
[406286400,1771690241320,-500.0,0.00013698,2]
[406286402,1771690241329,-500.0,0.00013698,2]
[406286404,1771690241338,-500.0,0.00013698,2]
[406286406,1771690241347,-500.0,0.00013698,2]
[406286408,1771690241360,-500.0,0.00013698,2]
[406286410,1771690241370,-500.0,0.00013698,2]
[406286412,1771690241379,-500.0,0.00013698,2]
[406286414,1771690241388,-500.0,0.00013698,2]
[406286416,1771690241399,-500.0,0.00013698,2]
[406286418,1771690241408,-500.0,0.00013698,2]
[406286420,1771690241417,-500.0,0.00013698,2]
[406286422,1771690241428,-500.0,0.00013698,2]
[406286424,1771690241437,-500.0,0.00013698,2]
[406286426,1771690241447,-500.0,0.00013698,2]
[406286428,1771690241456,-500.0,0.00013698,2]
[406286430,1771690241465,-500.0,0.00013698,2]
[406286432,1771690241474,-500.0,0.00013698,2]
[406286434,1771690241483,-500.0,0.00013698,2]
[406286436,1771690241492,-500.0,0.00013698,2]
[406286438,1771690241501,-500.0,0.00013698,2]
[406286440,1771690241510,-500.0,0.00013698,2]
[406286442,1771690241519,-500.0,0.00013698,2]
[406286444,1771690241528,-500.0,0.00013698,2]
[406286446,1771690241538,-500.0,0.00013698,2]
[406286448,1771690241547,-500.0,0.00013698,2]
[406286450,1771690241556,-500.0,0.00013698,2]
[406286452,1771690241565,-500.0,0.00013698,2]
[406286454,1771690241574,-500.0,0.00013698,2]
[406286456,1771690241583,-500.0,0.00013698,2]
[406286458,1771690241592,-500.0,0.00013698,2]
[406286460,1771690241601,-500.0,0.00013698,2]
[406286462,1771690241611,-500.0,0.00013698,2]
[406286463,1771690241620,-500.0,0.00013698,2]
[406286464,1771690241630,-627.47385881,0.00013698,2]
[406286466,1771690241639,-500.0,0.00013698,2]
[406286468,1771690241648,-204.27737629,0.00013698,2]
[406286470,1771690241657,-500.0,0.00013698,2]
[406286472,1771690241666,-500.0,0.00013698,2]
[406286474,1771690241676,-500.0,0.00013698,2]
[406286475,1771690241685,-500.0,0.00013698,2]
[406286476,1771690241694,-500.0,0.00013698,2]
[406286477,1771690241704,-513.53363328,0.00013698,2]
[406286478,1771690241712,-500.0,0.00013698,2]
[406286479,1771690241721,-500.0,0.00013698,2]
[406286480,1771690241730,-500.0,0.00013698,2]
[406286481,1771690241739,-564.4785355,0.00013698,2]
[406286482,1771690241748,-200.0,0.00013699,2]
[406286483,1771690241757,-780.44,0.00013699,2]
[406286484,1771690241766,-184.53,0.00013699,2]
[406286486,1771690241776,-500.0,0.00013746,2]
[406286488,1771690241785,-600.0,0.0001386,2]
[406286490,1771690241794,-226.91415027,0.0001386,2]
[406286492,1771690241803,-195.0,0.0001386,2]
[406286494,1771690241816,-502.0647315,0.0001386,2]
[406286496,1771690241825,-300.0,0.0001386,2]
[406286498,1771690241836,-166.66,0.0001394,2]
[406286500,1771690241846,-250.61672159,0.00013977,2]
[406286502,1771690241856,-500.0,0.00014,2]
[406286504,1771690241866,-500.0,0.00014,2]
[406286506,1771690241875,-595.10010439,0.00014,2]
[406286507,1771690241884,-500.0,0.00014,2]